[Event "Titled Tuesday Blitz December 27 Late 2022"]
[White "Sargsyan, Anna M."]
[Black "Avila Pavas, Santiago"]
[WhiteFideId "13308130"]
[BlackFideId "4437128"]
[WhiteElo "2375"]
[BlackElo "2522"]
[Result "1-0"]
[Round "10"]
[TimeControl "180+2"]
[Date "2022.12.27"]
[WhiteClock "0:00:03"]
[BlackClock "0:00:04"]

1. e4 {[%clk 0:02:49]}  Nf6 {[%clk 0:03:00]} 2. e5 {[%clk 0:02:47]}  Nd5 {[%clk 0:03:01]} 3. d4 {[%clk 0:02:47]}  d6 {[%clk 0:03:02]} 4. exd6 {[%clk 0:02:47]}  cxd6 {[%clk 0:03:02]} 5. c4 {[%clk 0:02:47]}  Nb6 {[%clk 0:03:03]} 6. Nc3 {[%clk 0:02:47]}  g6 {[%clk 0:03:04]} 7. Be3 {[%clk 0:02:47]}  Bg7 {[%clk 0:03:04]} 8. b3 {[%clk 0:02:45]}  O-O {[%clk 0:03:04]} 9. Rc1 {[%clk 0:02:46]}  e5 {[%clk 0:03:05]} 10. d5 {[%clk 0:02:44]}  Na6 {[%clk 0:03:01]} 11. Bd3 {[%clk 0:02:41]}  f5 {[%clk 0:02:59]} 12. f3 {[%clk 0:02:40]}  Nd7 {[%clk 0:02:55]} 13. Nge2 {[%clk 0:02:40]}  Nac5 {[%clk 0:02:46]} 14. Bb1 {[%clk 0:02:35]}  a5 {[%clk 0:02:45]} 15. O-O {[%clk 0:02:34]}  b6 {[%clk 0:02:26]} 16. a3 {[%clk 0:02:32]}  Na6 {[%clk 0:02:17]} 17. Qd2 {[%clk 0:02:21]}  Ndc5 {[%clk 0:02:09]} 18. Bc2 {[%clk 0:02:17]}  f4 {[%clk 0:01:59]} 19. Bf2 {[%clk 0:02:16]}  Bf5 {[%clk 0:02:00]} 20. Bxf5 {[%clk 0:02:06]}  gxf5 {[%clk 0:01:52]} 21. Rb1 {[%clk 0:02:06]}  Nd7 {[%clk 0:01:35]} 22. Nb5 {[%clk 0:02:03]}  Nf6 {[%clk 0:01:32]} 23. Rfe1 {[%clk 0:01:57]}  Rb8 {[%clk 0:01:25]} 24. Na7 {[%clk 0:01:54]}  Qe8 {[%clk 0:01:22]} 25. Nc6 {[%clk 0:01:54]}  Rb7 {[%clk 0:01:19]} 26. Nxf4 {[%clk 0:01:54]}  Bh6 {[%clk 0:01:13]} 27. Be3 {[%clk 0:01:50]}  exf4 {[%clk 0:01:08]} 28. Bxf4 {[%clk 0:01:49]}  Bxf4 {[%clk 0:01:08]} 29. Qxf4 {[%clk 0:01:49]}  Qg6 {[%clk 0:01:05]} 30. Qxd6 {[%clk 0:01:41]}  Nc5 {[%clk 0:00:30]} 31. Ne7+ {[%clk 0:01:29]}  Rxe7 {[%clk 0:00:30]} 32. Rxe7 {[%clk 0:01:30]}  Kh8 {[%clk 0:00:27]} 33. Qg3 {[%clk 0:01:23]}  Qh6 {[%clk 0:00:26]} 34. Kh1 {[%clk 0:01:02]}  Rg8 {[%clk 0:00:26]} 35. Qe5 {[%clk 0:01:02]}  Nd3 {[%clk 0:00:25]} 36. Qd4 {[%clk 0:00:59]}  Nf4 {[%clk 0:00:19]} 37. Rg1 {[%clk 0:00:38]}  Nh5 {[%clk 0:00:15]} 38. g4 {[%clk 0:00:35]}  Nf4 {[%clk 0:00:11]} 39. Rf7 {[%clk 0:00:21]}  Rg6 {[%clk 0:00:11]} 40. g5 {[%clk 0:00:20]}  Qh3 {[%clk 0:00:11]} 41. Qxf4 {[%clk 0:00:16]}  Nh5 {[%clk 0:00:12]} 42. Qb8+ {[%clk 0:00:13]}  Rg8 {[%clk 0:00:12]} 43. Qe5+ {[%clk 0:00:14]}  Ng7 {[%clk 0:00:11]} 44. Qg3 {[%clk 0:00:10]}  Qh5 {[%clk 0:00:11]} 45. Rf6 {[%clk 0:00:08]}  Ne8 {[%clk 0:00:09]} 46. Rxf5 {[%clk 0:00:07]}  Ng7 {[%clk 0:00:10]} 47. Rf6 {[%clk 0:00:07]}  Ne8 {[%clk 0:00:11]} 48. Re6 {[%clk 0:00:04]}  Ng7 {[%clk 0:00:10]} 49. Re7 {[%clk 0:00:04]}  Rf8 {[%clk 0:00:09]} 50. f4 {[%clk 0:00:03]}  Qg6 {[%clk 0:00:08]} 51. Qc3 {[%clk 0:00:03]}  Rg8 {[%clk 0:00:08]} 52. Rf1 {[%clk 0:00:02]}  Qh5 {[%clk 0:00:07]} 53. Rxg7 {[%clk 0:00:01]}  Rxg7 {[%clk 0:00:07]} 54. Qf3 {[%clk 0:00:02]}  Qh4 {[%clk 0:00:05]} 55. Kg2 {[%clk 0:00:02]}  Re7 {[%clk 0:00:05]} 56. h3 {[%clk 0:00:03]}  h5 {[%clk 0:00:04]} 57. Qg3 {[%clk 0:00:02]}  Re2+ {[%clk 0:00:04]} 58. Rf2 {[%clk 0:00:03]}  Rxf2+ {[%clk 0:00:04]} 59. Qxf2 {[%clk 0:00:03]} 1-0


[Site "https://www.chess.com"]

[Event "Titled Tuesday Blitz December 27 Late 2022"]
[White "Silva, Miguel Antonio Neto"]
[Black "Fernandez Hernandez, Gerardo"]
[WhiteFideId "1911929"]
[BlackFideId "2207400"]
[WhiteElo "2204"]
[BlackElo "2181"]
[Result "1-0"]
[Round "10"]
[TimeControl "180+2"]
[Date "2022.12.27"]
[WhiteClock "0:01:26"]
[BlackClock "0:00:02"]

1. e4 {[%clk 0:03:00]}  e6 {[%clk 0:02:59]} 2. d4 {[%clk 0:03:00]}  d5 {[%clk 0:03:00]} 3. Nc3 {[%clk 0:02:58]}  Nc6 {[%clk 0:03:00]} 4. Nf3 {[%clk 0:02:57]}  Nf6 {[%clk 0:03:00]} 5. e5 {[%clk 0:02:57]}  Ne4 {[%clk 0:03:00]} 6. Bd3 {[%clk 0:02:56]}  Bb4 {[%clk 0:02:59]} 7. Bd2 {[%clk 0:02:55]}  Nxd2 {[%clk 0:02:59]} 8. Qxd2 {[%clk 0:02:54]}  f6 {[%clk 0:02:59]} 9. exf6 {[%clk 0:02:52]}  Qxf6 {[%clk 0:02:59]} 10. a3 {[%clk 0:02:51]}  Bxc3 {[%clk 0:02:57]} 11. bxc3 {[%clk 0:02:50]}  O-O {[%clk 0:02:55]} 12. Bb5 {[%clk 0:02:49]}  Nb8 {[%clk 0:02:37]} 13. O-O {[%clk 0:02:48]}  Bd7 {[%clk 0:02:36]} 14. a4 {[%clk 0:02:43]}  Bxb5 {[%clk 0:02:20]} 15. axb5 {[%clk 0:02:42]}  a5 {[%clk 0:02:16]} 16. bxa6 {[%clk 0:02:40]}  Nxa6 {[%clk 0:02:08]} 17. Ne5 {[%clk 0:02:37]}  Rad8 {[%clk 0:01:56]} 18. Rfb1 {[%clk 0:02:35]}  c5 {[%clk 0:01:29]} 19. Rxb7 {[%clk 0:02:32]}  cxd4 {[%clk 0:01:05]} 20. cxd4 {[%clk 0:02:29]}  Nc5 {[%clk 0:01:02]} 21. dxc5 {[%clk 0:02:18]}  Qxe5 {[%clk 0:01:02]} 22. Raa7 {[%clk 0:02:15]}  Ra8 {[%clk 0:00:20]} 23. Rxg7+ {[%clk 0:02:07]}  Qxg7 {[%clk 0:00:20]} 24. Rxg7+ {[%clk 0:02:06]}  Kxg7 {[%clk 0:00:21]} 25. Qg5+ {[%clk 0:02:02]}  Kf7 {[%clk 0:00:21]} 26. h4 {[%clk 0:01:57]}  Ra6 {[%clk 0:00:16]} 27. Qf4+ {[%clk 0:01:52]}  Ke7 {[%clk 0:00:14]} 28. Qc7+ {[%clk 0:01:47]}  Kf6 {[%clk 0:00:14]} 29. c6 {[%clk 0:01:46]}  Rfa8 {[%clk 0:00:11]} 30. Qf4+ {[%clk 0:01:40]}  Ke7 {[%clk 0:00:10]} 31. Qc7+ {[%clk 0:01:32]}  Kf6 {[%clk 0:00:09]} 32. g4 {[%clk 0:01:29]}  R8a7 {[%clk 0:00:08]} 33. Qd8+ {[%clk 0:01:27]}  Ke5 {[%clk 0:00:07]} 34. c7 {[%clk 0:01:27]}  Ra1+ {[%clk 0:00:05]} 35. Kg2 {[%clk 0:01:27]}  Kf4 {[%clk 0:00:03]} 36. Qg5+ {[%clk 0:01:26]}  Ke4 {[%clk 0:00:02]} 37. c8=Q {[%clk 0:01:26]} 1-0


[Site "https://www.chess.com"]

[Event "Titled Tuesday Blitz December 27 Late 2022"]
[White "Silvestre, Christian"]
[Black "Kozin, Yuri"]
[WhiteFideId "30956269"]
[BlackFideId "4129920"]
[WhiteElo "1942"]
[BlackElo "2251"]
[Result "1/2-1/2"]
[Round "10"]
[TimeControl "180+2"]
[Date "2022.12.27"]
[WhiteClock "0:00:57"]
[BlackClock "0:00:22"]

1. e4 {[%clk 0:03:00]}  c5 {[%clk 0:03:00]} 2. Nc3 {[%clk 0:03:00]}  e6 {[%clk 0:02:59]} 3. f4 {[%clk 0:03:01]}  Nc6 {[%clk 0:02:54]} 4. Nf3 {[%clk 0:03:01]}  a6 {[%clk 0:02:53]} 5. a4 {[%clk 0:02:59]}  Nge7 {[%clk 0:02:51]} 6. d3 {[%clk 0:02:59]}  d5 {[%clk 0:02:51]} 7. g4 {[%clk 0:02:56]}  Rb8 {[%clk 0:02:26]} 8. Bg2 {[%clk 0:02:53]}  b5 {[%clk 0:02:26]} 9. axb5 {[%clk 0:02:53]}  axb5 {[%clk 0:02:27]} 10. O-O {[%clk 0:02:51]}  b4 {[%clk 0:02:28]} 11. Ne2 {[%clk 0:02:51]}  dxe4 {[%clk 0:02:11]} 12. dxe4 {[%clk 0:02:52]}  Qxd1 {[%clk 0:02:10]} 13. Rxd1 {[%clk 0:02:53]}  Bb7 {[%clk 0:02:04]} 14. Be3 {[%clk 0:02:53]}  Ng6 {[%clk 0:02:02]} 15. f5 {[%clk 0:02:49]}  Nge5 {[%clk 0:02:00]} 16. Nxe5 {[%clk 0:02:46]}  Nxe5 {[%clk 0:02:01]} 17. Bf4 {[%clk 0:02:46]}  f6 {[%clk 0:01:55]} 18. fxe6 {[%clk 0:02:46]}  c4 {[%clk 0:01:49]} 19. Rd7 {[%clk 0:02:26]}  Bc5+ {[%clk 0:01:43]} 20. Kh1 {[%clk 0:02:21]}  Nxd7 {[%clk 0:01:39]} 21. exd7+ {[%clk 0:02:20]}  Kxd7 {[%clk 0:01:40]} 22. Bxb8 {[%clk 0:02:20]}  Rxb8 {[%clk 0:01:41]} 23. Nf4 {[%clk 0:02:09]}  Ke7 {[%clk 0:01:34]} 24. Rd1 {[%clk 0:02:05]}  Ra8 {[%clk 0:01:21]} 25. Nd5+ {[%clk 0:02:05]}  Bxd5 {[%clk 0:01:20]} 26. exd5 {[%clk 0:02:06]}  Ra2 {[%clk 0:01:11]} 27. Rb1 {[%clk 0:02:04]}  Bd4 {[%clk 0:01:09]} 28. Bf1 {[%clk 0:01:55]}  c3 {[%clk 0:00:59]} 29. bxc3 {[%clk 0:01:51]}  Bxc3 {[%clk 0:00:58]} 30. Bd3 {[%clk 0:01:44]}  h6 {[%clk 0:00:56]} 31. Kg2 {[%clk 0:01:37]}  Kd6 {[%clk 0:00:56]} 32. Bh7 {[%clk 0:01:32]}  Ra7 {[%clk 0:00:54]} 33. Be4 {[%clk 0:01:27]}  Re7 {[%clk 0:00:54]} 34. Kf3 {[%clk 0:01:27]}  Kc5 {[%clk 0:00:50]} 35. h4 {[%clk 0:01:25]}  Kd4 {[%clk 0:00:47]} 36. Rd1+ {[%clk 0:01:24]}  Kc5 {[%clk 0:00:47]} 37. Bf5 {[%clk 0:01:19]}  Be5 {[%clk 0:00:43]} 38. Be6 {[%clk 0:01:10]}  Rc7 {[%clk 0:00:42]} 39. Rd2 {[%clk 0:01:05]}  Kd6 {[%clk 0:00:42]} 40. Rg2 {[%clk 0:01:04]}  Rc3+ {[%clk 0:00:40]} 41. Ke4 {[%clk 0:01:03]}  Rh3 {[%clk 0:00:33]} 42. h5 {[%clk 0:01:01]}  Rc3 {[%clk 0:00:23]} 43. Kf5 {[%clk 0:01:01]}  Rc7 {[%clk 0:00:24]} 44. Kg6 {[%clk 0:01:01]}  Bf4 {[%clk 0:00:20]} 45. Bf7 {[%clk 0:00:55]}  Bg5 {[%clk 0:00:20]} 46. Kxg7 {[%clk 0:00:53]}  Ke5 {[%clk 0:00:17]} 47. Kg6 {[%clk 0:00:52]}  Rd7 {[%clk 0:00:15]} 48. Be6 {[%clk 0:00:52]}  Rd8 {[%clk 0:00:14]} 49. Re2+ {[%clk 0:00:51]}  Kf4 {[%clk 0:00:13]} 50. Bf5 {[%clk 0:00:50]}  Kf3 {[%clk 0:00:13]} 51. Re4 {[%clk 0:00:49]}  Rxd5 {[%clk 0:00:13]} 52. Rxb4 {[%clk 0:00:49]}  Rc5 {[%clk 0:00:13]} 53. Bd3 {[%clk 0:00:48]}  Ke3 {[%clk 0:00:12]} 54. Re4+ {[%clk 0:00:48]}  Kd2 {[%clk 0:00:12]} 55. Kf7 {[%clk 0:00:47]}  Kc3 {[%clk 0:00:06]} 56. Kg6 {[%clk 0:00:46]}  Re5 {[%clk 0:00:06]} 57. Rxe5 {[%clk 0:00:46]}  fxe5 {[%clk 0:00:07]} 58. Kf5 {[%clk 0:00:46]}  Kd4 {[%clk 0:00:07]} 59. Be4 {[%clk 0:00:47]}  Bd2 {[%clk 0:00:06]} 60. Bd3 {[%clk 0:00:46]}  Bg5 {[%clk 0:00:06]} 61. Be4 {[%clk 0:00:44]}  Bf4 {[%clk 0:00:06]} 62. Ba8 {[%clk 0:00:42]}  Bg5 {[%clk 0:00:07]} 63. c3+ {[%clk 0:00:41]}  Kxc3 {[%clk 0:00:07]} 64. Kxe5 {[%clk 0:00:42]}  Kc4 {[%clk 0:00:07]} 65. Kf5 {[%clk 0:00:43]}  Kd3 {[%clk 0:00:08]} 66. Be4+ {[%clk 0:00:44]}  Kd4 {[%clk 0:00:08]} 67. Bc6 {[%clk 0:00:44]}  Ke3 {[%clk 0:00:08]} 68. Be8 {[%clk 0:00:45]}  Kd4 {[%clk 0:00:09]} 69. Bg6 {[%clk 0:00:45]}  Ke3 {[%clk 0:00:09]} 70. Bh7 {[%clk 0:00:46]}  Kd4 {[%clk 0:00:10]} 71. Kg6 {[%clk 0:00:46]}  Ke3 {[%clk 0:00:10]} 72. Kf5 {[%clk 0:00:47]}  Kf3 {[%clk 0:00:11]} 73. Bg8 {[%clk 0:00:48]}  Kg3 {[%clk 0:00:11]} 74. Be6 {[%clk 0:00:48]}  Kf3 {[%clk 0:00:11]} 75. Kg6 {[%clk 0:00:48]}  Kg3 {[%clk 0:00:12]} 76. Bf5 {[%clk 0:00:49]}  Kf4 {[%clk 0:00:13]} 77. Kf7 {[%clk 0:00:49]}  Kg3 {[%clk 0:00:13]} 78. Ke6 {[%clk 0:00:49]}  Kf4 {[%clk 0:00:14]} 79. Kd5 {[%clk 0:00:50]}  Kg3 {[%clk 0:00:15]} 80. Kc4 {[%clk 0:00:51]}  Kf4 {[%clk 0:00:15]} 81. Kd3 {[%clk 0:00:51]}  Ke5 {[%clk 0:00:16]} 82. Ke2 {[%clk 0:00:52]}  Kf6 {[%clk 0:00:17]} 83. Kf1 {[%clk 0:00:53]}  Ke5 {[%clk 0:00:18]} 84. Kg1 {[%clk 0:00:53]}  Kf4 {[%clk 0:00:19]} 85. Kg2 {[%clk 0:00:54]}  Ke5 {[%clk 0:00:19]} 86. Kf2 {[%clk 0:00:55]}  Kf4 {[%clk 0:00:20]} 87. Kf1 {[%clk 0:00:56]}  Ke5 {[%clk 0:00:21]} 88. Ke1 {[%clk 0:00:57]}  Kf6 {[%clk 0:00:21]} 89. Kf1 {[%clk 0:00:57]}  Ke5 {[%clk 0:00:22]} 1/2-1/2


[Site "https://www.chess.com"]

[Event "Titled Tuesday Blitz December 27 Late 2022"]
[White "Tanenbaum, Zachary"]
[Black "Defend, Balint"]
[WhiteFideId "2060850"]
[BlackFideId "17004853"]
[WhiteElo "2261"]
[BlackElo "1673"]
[Result "1-0"]
[Round "10"]
[TimeControl "180+2"]
[Date "2022.12.27"]
[WhiteClock "0:02:11"]
[BlackClock "0:01:44"]

1. e4 {[%clk 0:03:00]}  c5 {[%clk 0:03:00]} 2. Nf3 {[%clk 0:02:59]}  d6 {[%clk 0:03:01]} 3. d4 {[%clk 0:03:00]}  cxd4 {[%clk 0:03:02]} 4. Nxd4 {[%clk 0:03:00]}  Nf6 {[%clk 0:03:02]} 5. Nc3 {[%clk 0:03:00]}  a6 {[%clk 0:03:03]} 6. Be3 {[%clk 0:03:00]}  e5 {[%clk 0:03:04]} 7. Nb3 {[%clk 0:03:00]}  Be7 {[%clk 0:03:04]} 8. h3 {[%clk 0:03:00]}  Be6 {[%clk 0:03:03]} 9. Qf3 {[%clk 0:02:59]}  Nc6 {[%clk 0:02:44]} 10. O-O-O {[%clk 0:02:58]}  a5 {[%clk 0:02:44]} 11. Nc5 {[%clk 0:02:48]}  Qc8 {[%clk 0:02:39]} 12. Nxe6 {[%clk 0:02:46]}  Qxe6 {[%clk 0:02:40]} 13. Nd5 {[%clk 0:02:43]}  Rc8 {[%clk 0:02:34]} 14. Bc4 {[%clk 0:02:40]}  Nb4 {[%clk 0:02:15]} 15. Nc7+ {[%clk 0:02:39]}  Rxc7 {[%clk 0:02:15]} 16. Bxe6 {[%clk 0:02:40]}  fxe6 {[%clk 0:02:13]} 17. Kb1 {[%clk 0:02:36]}  Kd7 {[%clk 0:01:59]} 18. Bb6 {[%clk 0:02:27]}  Rc4 {[%clk 0:01:56]} 19. Bxa5 {[%clk 0:02:25]}  Nxc2 {[%clk 0:01:52]} 20. Qb3 {[%clk 0:02:18]}  Rhc8 {[%clk 0:01:49]} 21. Rc1 {[%clk 0:02:16]}  Nxe4 {[%clk 0:01:44]} 22. Qxb7+ {[%clk 0:02:14]}  Ke8 {[%clk 0:01:44]} 23. Rxc2 {[%clk 0:02:11]} 1-0


[Site "https://www.chess.com"]

[Event "Titled Tuesday Blitz December 27 Late 2022"]
[White "Vakhlamov, Igor L."]
[Black "Makarian, Rudik"]
[WhiteFideId "24126748"]
[BlackFideId "44105681"]
[WhiteElo "2413"]
[BlackElo "2545"]
[Result "0-1"]
[Round "10"]
[TimeControl "180+2"]
[Date "2022.12.27"]
[WhiteClock "0:00:08"]
[BlackClock "0:00:10"]

1. e4 {[%clk 0:03:00]}  d6 {[%clk 0:03:00]} 2. d4 {[%clk 0:02:59]}  Nf6 {[%clk 0:03:00]} 3. Nc3 {[%clk 0:02:59]}  e5 {[%clk 0:03:01]} 4. dxe5 {[%clk 0:03:00]}  dxe5 {[%clk 0:03:02]} 5. Qxd8+ {[%clk 0:03:00]}  Kxd8 {[%clk 0:03:03]} 6. Bg5 {[%clk 0:03:00]}  Nd7 {[%clk 0:03:02]} 7. Nf3 {[%clk 0:02:59]}  Bd6 {[%clk 0:03:01]} 8. Nd2 {[%clk 0:02:56]}  h6 {[%clk 0:02:59]} 9. Bh4 {[%clk 0:02:55]}  Bb4 {[%clk 0:02:51]} 10. O-O-O {[%clk 0:02:50]}  Bxc3 {[%clk 0:02:51]} 11. bxc3 {[%clk 0:02:51]}  g5 {[%clk 0:02:28]} 12. Bg3 {[%clk 0:02:51]}  Nh5 {[%clk 0:02:28]} 13. Nc4 {[%clk 0:02:45]}  Nxg3 {[%clk 0:02:28]} 14. hxg3 {[%clk 0:02:46]}  Ke7 {[%clk 0:02:29]} 15. Ne3 {[%clk 0:02:43]}  Nf6 {[%clk 0:02:28]} 16. f3 {[%clk 0:02:43]}  c6 {[%clk 0:02:18]} 17. Bc4 {[%clk 0:02:36]}  a5 {[%clk 0:02:10]} 18. a3 {[%clk 0:02:35]}  b5 {[%clk 0:02:04]} 19. Bb3 {[%clk 0:02:28]}  h5 {[%clk 0:02:01]} 20. Kb2 {[%clk 0:02:20]}  Be6 {[%clk 0:02:01]} 21. Bxe6 {[%clk 0:02:13]}  fxe6 {[%clk 0:02:00]} 22. c4 {[%clk 0:02:13]}  h4 {[%clk 0:01:57]} 23. gxh4 {[%clk 0:02:11]}  gxh4 {[%clk 0:01:57]} 24. cxb5 {[%clk 0:02:07]}  cxb5 {[%clk 0:01:58]} 25. Rh2 {[%clk 0:02:06]}  Rh7 {[%clk 0:01:49]} 26. Rdh1 {[%clk 0:02:05]}  Rah8 {[%clk 0:01:49]} 27. c4 {[%clk 0:01:50]}  bxc4 {[%clk 0:01:28]} 28. Nxc4 {[%clk 0:01:51]}  Nd7 {[%clk 0:01:22]} 29. Nxa5 {[%clk 0:01:49]}  Kf6 {[%clk 0:01:22]} 30. Nc4 {[%clk 0:01:36]}  Nc5 {[%clk 0:01:15]} 31. Ne3 {[%clk 0:01:27]}  Nd3+ {[%clk 0:00:49]} 32. Kc3 {[%clk 0:01:22]}  Nf4 {[%clk 0:00:28]} 33. Ng4+ {[%clk 0:01:07]}  Kg5 {[%clk 0:00:27]} 34. Nxe5 {[%clk 0:00:59]}  Rc7+ {[%clk 0:00:23]} 35. Kb2 {[%clk 0:00:51]}  Rb8+ {[%clk 0:00:24]} 36. Ka2 {[%clk 0:00:50]}  Rc3 {[%clk 0:00:23]} 37. Nf7+ {[%clk 0:00:24]}  Kf6 {[%clk 0:00:21]} 38. Rxh4 {[%clk 0:00:25]}  Nd3 {[%clk 0:00:16]} 39. Rb1 {[%clk 0:00:13]}  Ra8 {[%clk 0:00:10]} 40. Rb7 {[%clk 0:00:08]}  Raxa3+ {[%clk 0:00:10]} 41. Kb1 {[%clk 0:00:08]}  Rc1# {[%clk 0:00:10]} 0-1


[Site "https://www.chess.com"]

[Event "Titled Tuesday Blitz December 27 Late 2022"]
[White "Vlassov, Nikolai"]
[Black "Xiong, Jeffery"]
[WhiteFideId "4103360"]
[BlackFideId "2047640"]
[WhiteElo "2283"]
[BlackElo "2692"]
[Result "0-1"]
[Round "10"]
[TimeControl "180+2"]
[Date "2022.12.27"]
[WhiteClock "0:00:09"]
[BlackClock "0:01:22"]

1. e4 {[%clk 0:03:00]}  c6 {[%clk 0:02:57]} 2. d4 {[%clk 0:03:00]}  d5 {[%clk 0:02:57]} 3. e5 {[%clk 0:03:00]}  Bf5 {[%clk 0:02:57]} 4. Nf3 {[%clk 0:03:01]}  e6 {[%clk 0:02:58]} 5. Be2 {[%clk 0:03:00]}  h6 {[%clk 0:02:58]} 6. O-O {[%clk 0:03:00]}  Ne7 {[%clk 0:02:59]} 7. Nbd2 {[%clk 0:03:00]}  Bh7 {[%clk 0:02:59]} 8. Nb3 {[%clk 0:03:00]}  Ng6 {[%clk 0:02:59]} 9. Bd2 {[%clk 0:03:00]}  Be7 {[%clk 0:02:59]} 10. a4 {[%clk 0:02:59]}  Nd7 {[%clk 0:03:00]} 11. a5 {[%clk 0:02:56]}  O-O {[%clk 0:03:00]} 12. c4 {[%clk 0:02:45]}  f6 {[%clk 0:02:59]} 13. exf6 {[%clk 0:02:31]}  Nxf6 {[%clk 0:03:00]} 14. Re1 {[%clk 0:02:28]}  Ne4 {[%clk 0:02:58]} 15. Bd3 {[%clk 0:02:17]}  Nh4 {[%clk 0:02:58]} 16. Bxe4 {[%clk 0:02:08]}  Bxe4 {[%clk 0:02:55]} 17. Ne5 {[%clk 0:02:05]}  Bxg2 {[%clk 0:02:50]} 18. Qg4 {[%clk 0:01:44]}  dxc4 {[%clk 0:02:28]} 19. Bxh6 {[%clk 0:01:29]}  Bf6 {[%clk 0:02:17]} 20. Nc5 {[%clk 0:01:06]}  Bd5 {[%clk 0:01:42]} 21. Nxe6 {[%clk 0:00:57]}  Qc8 {[%clk 0:01:27]} 22. Nxf8 {[%clk 0:00:27]}  Nf3+ {[%clk 0:01:27]} 23. Qxf3 {[%clk 0:00:17]}  Bxf3 {[%clk 0:01:27]} 24. Nfd7 {[%clk 0:00:16]}  Bxe5 {[%clk 0:01:23]} 25. Nxe5 {[%clk 0:00:15]}  gxh6 {[%clk 0:01:23]} 26. Re3 {[%clk 0:00:12]}  Bd5 {[%clk 0:01:22]} 27. Rg3+ {[%clk 0:00:12]}  Kh7 {[%clk 0:01:22]} 28. Raa3 {[%clk 0:00:10]}  Qf5 {[%clk 0:01:22]} 29. Rg4 {[%clk 0:00:09]}  Qb1# {[%clk 0:01:22]} 0-1


[Site "https://www.chess.com"]

[Event "Titled Tuesday Blitz December 27 Late 2022"]
[White "Weisz, Bryan"]
[Black "Della Corte, Alessandro"]
[WhiteFideId "30934133"]
[BlackFideId "813540"]
[WhiteElo "1973"]
[BlackElo "2160"]
[Result "0-1"]
[Round "10"]
[TimeControl "180+2"]
[Date "2022.12.27"]
[WhiteClock "0:00:03"]
[BlackClock "0:01:12"]

1. e4 {[%clk 0:02:59]}  c5 {[%clk 0:02:59]} 2. Nf3 {[%clk 0:02:58]}  d6 {[%clk 0:02:59]} 3. d4 {[%clk 0:02:59]}  cxd4 {[%clk 0:02:59]} 4. Nxd4 {[%clk 0:02:59]}  Nf6 {[%clk 0:02:59]} 5. Nc3 {[%clk 0:03:00]}  a6 {[%clk 0:02:58]} 6. Bg5 {[%clk 0:02:59]}  e6 {[%clk 0:02:59]} 7. f4 {[%clk 0:02:59]}  Qb6 {[%clk 0:02:59]} 8. Qd2 {[%clk 0:02:59]}  Nc6 {[%clk 0:02:59]} 9. O-O-O {[%clk 0:02:58]}  Qxd4 {[%clk 0:02:58]} 10. Qxd4 {[%clk 0:02:58]}  Nxd4 {[%clk 0:02:59]} 11. Rxd4 {[%clk 0:02:59]}  Be7 {[%clk 0:03:00]} 12. Bxf6 {[%clk 0:02:50]}  gxf6 {[%clk 0:02:55]} 13. g3 {[%clk 0:02:43]}  Bd7 {[%clk 0:02:55]} 14. Bg2 {[%clk 0:02:43]}  Bc6 {[%clk 0:02:55]} 15. Re1 {[%clk 0:02:39]}  h5 {[%clk 0:02:56]} 16. Nd5 {[%clk 0:02:36]}  Bd8 {[%clk 0:02:40]} 17. Ne3 {[%clk 0:02:09]}  Bb6 {[%clk 0:02:32]} 18. Rxd6 {[%clk 0:02:08]}  Ke7 {[%clk 0:02:30]} 19. Rd3 {[%clk 0:02:06]}  h4 {[%clk 0:02:27]} 20. Nd5+ {[%clk 0:01:56]}  Bxd5 {[%clk 0:02:27]} 21. exd5 {[%clk 0:01:56]}  hxg3 {[%clk 0:02:28]} 22. hxg3 {[%clk 0:01:37]}  Rad8 {[%clk 0:02:24]} 23. dxe6 {[%clk 0:01:27]}  fxe6 {[%clk 0:02:21]} 24. Rxd8 {[%clk 0:01:21]}  Rxd8 {[%clk 0:02:18]} 25. Bxb7 {[%clk 0:01:20]}  Bf2 {[%clk 0:02:16]} 26. Re2 {[%clk 0:01:09]}  Bxg3 {[%clk 0:02:16]} 27. c3 {[%clk 0:00:53]}  Bxf4+ {[%clk 0:02:16]} 28. Kc2 {[%clk 0:00:53]}  a5 {[%clk 0:02:15]} 29. Re4 {[%clk 0:00:46]}  e5 {[%clk 0:02:13]} 30. Ra4 {[%clk 0:00:45]}  Rd2+ {[%clk 0:02:13]} 31. Kb3 {[%clk 0:00:46]}  f5 {[%clk 0:02:06]} 32. Rxa5 {[%clk 0:00:45]}  Kf6 {[%clk 0:01:58]} 33. Bc8 {[%clk 0:00:35]}  Rf2 {[%clk 0:01:54]} 34. a4 {[%clk 0:00:28]}  Bc1 {[%clk 0:01:54]} 35. Kc4 {[%clk 0:00:19]}  Bxb2 {[%clk 0:01:54]} 36. Ra6+ {[%clk 0:00:19]}  Kg5 {[%clk 0:01:53]} 37. Ra5 {[%clk 0:00:18]}  e4 {[%clk 0:01:50]} 38. Rb5 {[%clk 0:00:11]}  e3 {[%clk 0:01:37]} 39. Kd3 {[%clk 0:00:12]}  Bc1 {[%clk 0:01:35]} 40. a5 {[%clk 0:00:09]}  Rd2+ {[%clk 0:01:34]} 41. Kc4 {[%clk 0:00:07]}  Rf2 {[%clk 0:01:25]} 42. Kd3 {[%clk 0:00:08]}  Rd2+ {[%clk 0:01:24]} 43. Kc4 {[%clk 0:00:08]}  e2 {[%clk 0:01:22]} 44. Rxf5+ {[%clk 0:00:06]}  Kg6 {[%clk 0:01:23]} 45. Re5 {[%clk 0:00:07]}  Ra2 {[%clk 0:01:18]} 46. a6 {[%clk 0:00:05]}  Bf4 {[%clk 0:01:18]} 47. Re6+ {[%clk 0:00:05]}  Kf7 {[%clk 0:01:17]} 48. Re4 {[%clk 0:00:05]}  Bg3 {[%clk 0:01:17]} 49. Be6+ {[%clk 0:00:03]}  Kf6 {[%clk 0:01:17]} 50. Re3 {[%clk 0:00:02]}  e1=Q {[%clk 0:01:16]} 51. Rxe1 {[%clk 0:00:02]}  Bxe1 {[%clk 0:01:17]} 52. Bc8 {[%clk 0:00:02]}  Ke5 {[%clk 0:01:13]} 53. Kb5 {[%clk 0:00:03]}  Kd6 {[%clk 0:01:12]} 0-1


[Site "https://www.chess.com"]